bitfinex/quotes_BTCUSD_20230114
["timestamp","ask_amount","ask_price","bid_price","bid_amount"]
[1673692052956,0.10129196,20337.0,20336.0,0.11352618]
[1673692053197,0.59300596,20337.0,20336.0,0.11352618]
[1673692053949,0.491714,20337.0,20336.0,0.11352618]
[1673692054190,0.491714,20337.0,20336.0,0.15944903]
[1673692054436,0.491698,20338.0,20337.0,0.05119334]
[1673692054953,0.983165,20343.0,20337.0,0.19072595]
[1673692055225,0.491561,20344.0,20338.0,0.51360695]
[1673692055481,0.491561,20344.0,20339.0,0.21088895]
[1673692055730,0.12532914,20347.0,20340.0,0.51357295]
[1673692055993,0.61680514,20347.0,20341.0,0.21088495]
[1673692056244,0.61680514,20347.0,20342.0,0.51353595]
[1673692056245,0.12740626,20347.0,20342.0,0.51353595]
[1673692056500,0.49146,20348.0,20343.0,0.19072595]
[1673692056751,0.45923352,20352.0,20343.0,0.19072595]
[1673692056752,0.09527883,20351.0,20344.0,1.00514695]
[1673692057000,0.61648342,20353.0,20345.0,0.31077195]
[1673692057247,0.12514842,20353.0,20346.0,1.00505495]
[1673692057489,0.10072596,20352.0,20347.0,0.19072595]
[1673692057788,0.49138,20351.0,20344.0,0.491532]
[1673692058040,0.49138,20351.0,20343.0,0.491564]
[1673692058041,0.59210596,20351.0,20343.0,0.491564]
[1673692058282,0.10016837,20350.0,20345.0,0.0570263]
[1673692058532,0.59157137,20350.0,20345.0,0.0570263]
[1673692058780,0.59157137,20350.0,20346.0,0.19072595]
[1673692059022,0.10016837,20350.0,20346.0,0.19072595]
[1673692059271,0.20089433,20350.0,20345.0,0.044446]
[1673692059515,0.10072596,20349.0,20345.0,0.044446]
[1673692060267,0.45923352,20353.0,20343.0,0.1]
[1673692060268,0.00603842,20354.0,20346.0,0.99080864]
[1673692060508,0.00603842,20354.0,20348.0,0.982887]
[1673692060759,0.00603842,20354.0,20349.0,0.61355095]
[1673692061012,0.00603842,20354.0,20350.0,0.70211495]
[1673692061272,0.00603842,20354.0,20351.0,0.51351795]
[1673692061516,0.00603842,20354.0,20352.0,0.019997]
[1673692061771,0.00603842,20354.0,20353.0,0.322759]
[1673692062016,0.00603842,20354.0,20351.0,0.19072595]
[1673692062265,0.00603842,20354.0,20350.0,0.491376]
[1673692062515,0.00603842,20354.0,20351.0,0.814247]
[1673692062767,0.00603842,20354.0,20352.0,0.119908]
[1673692063026,0.00603842,20354.0,20353.0,1.305504]
[1673692063280,3.842e-05,20354.0,20353.0,1.97343164]
[1673692063537,0.0459013,20356.0,20354.0,0.1]
[1673692063787,0.0459013,20356.0,20355.0,1.97094169]
[1673692064032,0.12203901,20355.0,20354.0,6e-05]
[1673692064527,0.0459013,20356.0,20354.0,6e-05]
[1673692064780,0.0459013,20356.0,20354.0,0.00500667]
[1673692065299,0.0459013,20356.0,20355.0,0.80008269]
[1673692065541,0.0459013,20356.0,20355.0,2.27336664]
[1673692065793,0.0459013,20356.0,20355.0,2.08264069]
[1673692066294,0.0459013,20356.0,20355.0,7.08264069]
[1673692066535,0.0459013,20356.0,20355.0,2.08264069]
[1673692066782,0.0459013,20356.0,20355.0,7.18264069]
[1673692067030,0.0459013,20356.0,20355.0,2.18264069]
[1673692067274,0.0459013,20356.0,20355.0,7.88264069]
[1673692067518,0.14662726,20356.0,20355.0,0.86794123]
[1673692067762,0.0459013,20356.0,20355.0,0.86794123]
[1673692068520,0.0459013,20356.0,20355.0,0.81416]
[1673692068770,0.0459013,20356.0,20355.0,1.39136169]
[1673692069724,0.00701188,20358.0,20356.0,0.13168753]
[1673692070002,0.00701188,20358.0,20357.0,1.97072469]
[1673692070243,0.00701188,20358.0,20357.0,2.37072469]
[1673692070492,0.00701188,20358.0,20357.0,2.07072469]
[1673692070996,0.00701188,20358.0,20357.0,1.002292]
[1673692071236,0.00701188,20358.0,20357.0,0.55708568]
[1673692073041,0.00701188,20358.0,20357.0,0.06585468]
[1673692075026,0.10773784,20358.0,20356.0,0.03168753]
[1673692075275,0.59894484,20358.0,20356.0,0.03168753]
[1673692075525,0.201344,20357.0,20354.0,6e-05]
[1673692075767,1.08323596,20356.0,20354.0,6e-05]
[1673692076018,0.201344,20355.0,20354.0,6e-05]
[1673692076268,0.692623,20355.0,20354.0,6e-05]
[1673692076762,1.092623,20355.0,20354.0,6e-05]
[1673692077003,0.79403729,20355.0,20354.0,6e-05]
[1673692077511,0.89403729,20355.0,20354.0,6e-05]
[1673692077751,0.792623,20355.0,20354.0,6e-05]
[1673692078005,0.89765435,20355.0,20354.0,6e-05]
[1673692078262,0.88692208,20355.0,20354.0,6e-05]
[1673692078778,0.78692208,20355.0,20354.0,6e-05]
[1673692079037,0.88692208,20355.0,20354.0,6e-05]
[1673692079268,0.78692208,20355.0,20354.0,6e-05]
[1673692079761,0.29564308,20355.0,20354.0,6e-05]
[1673692080255,0.29564308,20355.0,20354.0,0.05217]
[1673692080497,0.00701188,20358.0,20354.0,0.25661295]
[1673692080745,0.00701188,20358.0,20355.0,0.52210695]
[1673692081007,0.00701188,20358.0,20356.0,0.322881]
[1673692081257,0.00701188,20358.0,20357.0,0.06061]
[1673692081505,0.00701188,20358.0,20357.0,0.05211]
[1673692081746,0.00701188,20358.0,20357.0,0.10893203]
[1673692082482,0.00701188,20358.0,20357.0,0.06061]
[1673692082742,0.00201188,20358.0,20357.0,0.874722]
[1673692083264,0.0558477,20359.0,20358.0,0.1]
[1673692083517,0.0558477,20359.0,20358.0,1.87940669]
[1673692083754,0.0538477,20359.0,20358.0,1.0543327]
[1673692084001,0.0538477,20359.0,20358.0,1.002205]
[1673692084534,0.0538477,20359.0,20358.0,1.87940669]
[1673692084779,0.0481477,20359.0,20358.0,1.87940669]
[1673692085023,0.0481477,20359.0,20358.0,1.57940669]
[1673692085273,0.0481477,20359.0,20358.0,1.87940669]
[1673692085528,7.7e-06,20359.0,20358.0,1.90568757]
[1673692085779,7.7e-06,20359.0,20358.0,8.90568757]
[1673692086039,1.612e-05,20360.0,20358.0,6.87940669]
[1673692086280,0.00597269,20370.0,20359.0,1.29077364]
[1673692086559,0.10669865,20370.0,20363.0,0.47720169]
[1673692086806,0.10669865,20370.0,20362.0,2.209962]
[1673692086807,0.00597269,20370.0,20365.0,1.473108]
[1673692087050,0.10669865,20370.0,20366.0,0.019776]
[1673692087287,0.49689269,20370.0,20367.0,0.19072595]
[1673692087531,0.1055466,20369.0,20368.0,0.19072595]
[1673692087776,0.00597269,20370.0,20366.0,0.491009]
[1673692088028,0.00597269,20370.0,20367.0,0.490988]
[1673692088272,0.00597269,20370.0,20368.0,0.322881]
[1673692088514,0.00597269,20370.0,20369.0,1.23055264]
[1673692088769,0.5510782,20371.0,20370.0,0.1]
[1673692089014,0.5510782,20371.0,20370.0,2.18188569]
[1673692089225,0.5510782,20371.0,20370.0,2.37261164]
[1673692089521,0.5510782,20371.0,20370.0,1.88188569]
[1673692089769,0.5460782,20371.0,20370.0,2.18188569]
[1673692090017,0.5460782,20371.0,20370.0,1.36002724]
[1673692090267,0.5460782,20371.0,20370.0,0.322848]
[1673692090268,0.64680416,20371.0,20370.0,0.322848]
[1673692090512,0.5460782,20371.0,20365.0,0.491024]
[1673692090762,0.10072596,20370.0,20366.0,0.04991753]
[1673692091014,0.10072596,20370.0,20364.0,0.491048]
[1673692091015,0.20072596,20369.0,20364.0,0.491048]
[1673692091271,0.10072596,20368.0,20364.0,0.06077861]
[1673692091538,0.10072596,20367.0,20365.0,0.05979917]
[1673692091793,0.20072596,20369.0,20362.0,0.491104]
[1673692092042,0.10072596,20366.0,20359.0,0.053656]
[1673692092294,0.79311896,20365.0,20360.0,0.05432525]
[1673692092541,0.10072596,20364.0,20360.0,0.05432525]
[1673692092788,0.30206996,20363.0,20362.0,0.04494613]
[1673692093039,0.201344,20363.0,20362.0,0.04494613]
[1673692093541,0.60045514,20366.0,20362.0,0.04494613]
[1673692093783,0.60045514,20366.0,20362.0,0.23567208]
[1673692094037,0.201344,20365.0,20362.0,0.23567208]
[1673692094303,0.201344,20365.0,20358.0,0.05044757]
[1673692094304,1.37784996,20364.0,20358.0,0.05044757]
[1673692094552,1.45571354,20363.0,20352.0,0.491351]
[1673692094796,1.45571354,20363.0,20352.0,1.0593937]
[1673692094797,0.982332,20360.0,20352.0,1.0593937]
[1673692095040,1.23291523,20359.0,20352.0,0.0582695]
[1673692095287,1.582332,20360.0,20353.0,0.05959553]
[1673692095288,0.1,20356.0,20353.0,0.05959553]
[1673692095574,0.6,20354.0,20350.0,0.06577873]
[1673692095815,0.6,20354.0,20350.0,0.01571811]
[1673692095816,1.53703354,20353.0,20350.0,0.01571811]
[1673692096078,1.53703354,20353.0,20339.0,1.29987208]
[1673692096079,1.33291523,20352.0,20339.0,1.29987208]
[1673692096325,1.33291523,20352.0,20339.0,0.1]
[1673692096326,1.474321,20349.0,20339.0,0.1]
[1673692096628,0.7540062,20348.0,20337.0,0.63684862]
[1673692096858,0.59221496,20347.0,20338.0,0.19072595]
[1673692097104,0.10072596,20346.0,20340.0,0.14515162]
[1673692097361,0.10072596,20346.0,20342.0,0.1]
[1673692097653,0.63251086,20352.0,20343.0,0.814383]
[1673692097849,0.63251086,20352.0,20344.0,0.31085795]
[1673692097850,0.63838184,20352.0,20344.0,0.31085795]
[1673692098099,0.10072596,20352.0,20345.0,0.51350095]
[1673692098374,0.491332,20353.0,20346.0,0.21085395]
[1673692098609,0.491312,20354.0,20347.0,0.51360695]
[1673692098856,0.59005023,20357.0,20348.0,0.21070995]
[1673692099098,0.12021545,20356.0,20349.0,0.51357195]
[1673692099351,0.10072596,20356.0,20350.0,0.19072595]
[1673692099601,0.591233,20357.0,20351.0,0.19072595]
[1673692099602,0.491233,20357.0,20351.0,0.19072595]
[1673692099865,0.491233,20357.0,20352.0,0.19072595]
[1673692100133,0.491233,20357.0,20348.0,0.491437]
[1673692100134,0.09895893,20356.0,20353.0,0.19072595]
[1673692100384,0.09895893,20356.0,20348.0,3.99419389]
[1673692100385,1.38462796,20355.0,20348.0,3.0]
[1673692100634,1.38462796,20355.0,20341.0,1.62356162]
[1673692100635,0.45193624,20354.0,20341.0,1.47841]
[1673692100883,0.45193624,20354.0,20340.0,0.491618]
[1673692100884,0.982796,20351.0,20340.0,0.491618]
[1673692101143,1.02986389,20350.0,20339.0,0.0255552]
[1673692101396,0.55193624,20349.0,20337.0,0.01446429]
[1673692101646,1.47444,20347.0,20337.0,0.01446429]
[1673692101916,1.47444,20347.0,20337.0,0.20519024]
[1673692101917,0.5526622,20346.0,20337.0,0.20519024]
[1673692102167,0.983113,20344.0,20338.0,0.19072595]
[1673692102429,0.45193624,20346.0,20339.0,0.19072595]
[1673692102671,0.60612266,20348.0,20340.0,0.37307791]
[1673692102921,0.60612266,20348.0,20341.0,0.21084795]
[1673692102922,0.10179123,20345.0,20341.0,0.21084795]
[1673692103166,0.10179123,20345.0,20337.0,0.50617029]
[1673692103167,0.69405019,20345.0,20337.0,0.50617029]
[1673692103444,0.10072596,20344.0,20337.0,0.20519024]
[1673692103701,0.983192,20342.0,20337.0,0.01446429]
[1673692103938,0.30206996,20341.0,20337.0,0.01446429]
[1673692104191,0.10072596,20340.0,20337.0,0.01446429]
[1673692104743,0.59237896,20340.0,20337.0,0.01446429]
[1673692104985,0.32944766,20339.0,20337.0,0.01446429]
[1673692105249,0.61979366,20339.0,20337.0,0.01446429]
[1673692105492,0.201344,20338.0,20337.0,0.01446429]
[1673692105738,0.491596,20342.0,20337.0,0.06657429]
[1673692105988,0.11550172,20339.0,20337.0,0.20519024]
[1673692106227,0.11550172,20339.0,20336.0,0.11352618]
[1673692106228,0.49169,20338.0,20336.0,0.11352618]
[1673692106483,0.61306039,20339.0,20336.0,0.11352618]
[1673692106484,0.201344,20337.0,20336.0,0.11352618]
[1673692107709,0.62079076,20338.0,20336.0,0.11352618]
[1673692107965,0.60079076,20338.0,20336.0,0.11352618]
[1673692108214,0.60079076,20338.0,20336.0,0.09352618]
[1673692108215,0.3222092,20337.0,20336.0,0.09352618]
[1673692109228,0.471694,20338.0,20336.0,0.09352618]
[1673692109475,0.491653,20340.0,20336.0,0.09352618]
[1673692109476,0.94358924,20340.0,20336.0,0.28425213]
[1673692109757,0.491632,20341.0,20336.0,0.28425213]
[1673692110006,0.12384062,20339.0,20336.0,0.28425213]
[1673692110245,0.201344,20338.0,20336.0,0.09352618]
[1673692110512,0.201344,20337.0,20336.0,0.09352618]
[1673692110761,0.60973589,20339.0,20336.0,0.09352618]
[1673692111007,0.491674,20339.0,20336.0,0.09352618]
[1673692111248,0.201344,20338.0,20336.0,0.09352618]
[1673692111499,0.59974517,20339.0,20336.0,0.09352618]
[1673692111500,1.05168141,20339.0,20336.0,0.09352618]
[1673692111749,0.1,20337.0,20336.0,0.09352618]
[1673692112003,0.59974517,20339.0,20336.0,0.09352618]
[1673692112004,0.94361024,20339.0,20336.0,0.09352618]
[1673692112250,1.16879311,20339.0,20336.0,0.09352618]
[1673692112517,1.0725171,20338.0,20336.0,0.09352618]
[1673692112779,1.92707824,20337.0,20336.0,0.09352618]
[1673692113031,1.30427148,20337.0,20336.0,0.08401105]
[1673692113277,1.60427148,20337.0,20336.0,0.08401105]
[1673692113527,1.184772,20337.0,20336.0,0.274737]
[1673692113771,0.491611,20342.0,20336.0,0.08401105]
[1673692114025,0.60899987,20342.0,20337.0,0.19072595]
[1673692114274,0.60899987,20342.0,20338.0,0.19072595]
[1673692114521,0.491611,20342.0,20339.0,0.19072595]
[1673692114761,0.491581,20343.0,20339.0,0.19072595]
[1673692115007,0.58614229,20347.0,20340.0,0.19072595]
[1673692115257,0.4915,20346.0,20341.0,0.19072595]
[1673692115508,0.12983652,20347.0,20342.0,0.19072595]
[1673692115763,0.491463,20348.0,20343.0,0.19072595]
[1673692115764,0.00575453,20344.0,20343.0,0.19072595]
[1673692116010,0.00575453,20344.0,20342.0,0.1]
[1673692116249,0.00575453,20344.0,20343.0,0.322881]
[1673692117521,0.12499139,20344.0,20341.0,0.55362944]
[1673692117769,0.12499139,20344.0,20335.0,1.49671581]
[1673692117770,0.11923686,20343.0,20336.0,0.57573705]
[1673692118017,0.56974048,20342.0,20336.0,0.08401105]
[1673692118269,0.82812902,20341.0,20336.0,0.08401105]
[1673692118509,0.32058086,20340.0,20336.0,0.08401105]
[1673692118764,0.11923686,20339.0,20336.0,0.08401105]
[1673692119000,0.32058086,20338.0,20336.0,0.08401105]
[1673692119285,0.491677,20339.0,20336.0,0.08401105]
[1673692119538,0.201344,20338.0,20336.0,0.08401105]
[1673692119795,0.94218062,20339.0,20336.0,0.08401105]
[1673692120058,0.201344,20338.0,20336.0,0.08401105]
[1673692120298,0.491586,20343.0,20336.0,0.08401105]
[1673692120299,0.62190299,20343.0,20336.0,0.08401105]
[1673692120546,0.491586,20343.0,20337.0,0.19072595]
[1673692120782,1.04154201,20344.0,20338.0,0.19072595]
[1673692120783,0.10407814,20342.0,20338.0,0.19072595]
[1673692121032,0.00575453,20344.0,20339.0,0.68238795]
[1673692121281,0.00575453,20344.0,20340.0,0.61360695]
[1673692121526,0.00575453,20344.0,20341.0,1.19407895]
[1673692121777,0.00575453,20344.0,20342.0,0.322847]
[1673692122027,0.00575453,20344.0,20343.0,0.072232]
[1673692122525,0.00575453,20344.0,20343.0,0.05211]
[1673692123023,0.00575453,20344.0,20341.0,0.491613]
[1673692123295,0.00575453,20344.0,20339.0,0.491662]
[1673692123296,0.12499139,20344.0,20339.0,0.491662]
[1673692123535,0.11923686,20343.0,20339.0,0.491662]
[1673692123778,0.11923686,20343.0,20340.0,0.322881]
[1673692124032,0.11923686,20343.0,20341.0,0.020126]
[1673692124282,0.13281005,20344.0,20339.0,0.591662]
[1673692124536,0.00575453,20344.0,20340.0,0.51360695]
[1673692124805,0.00575453,20344.0,20341.0,1.003351]
[1673692125052,0.00575453,20344.0,20342.0,0.422847]
[1673692125299,0.00575453,20344.0,20343.0,0.563801]
[1673692126047,0.00575453,20344.0,20343.0,0.663801]
[1673692126565,0.12499139,20344.0,20340.0,0.49163]
[1673692126809,0.12499139,20344.0,20339.0,1.0172]
[1673692126810,0.11923686,20343.0,20339.0,0.491662]
[1673692127055,0.11923686,20342.0,20340.0,0.322881]
[1673692127302,0.12441778,20344.0,20341.0,0.020126]
[1673692127561,0.12441778,20344.0,20339.0,0.491662]
[1673692127803,0.11923686,20343.0,20339.0,0.491662]
[1673692128297,0.11923686,20342.0,20340.0,0.322881]
[1673692128535,0.983234,20341.0,20336.0,0.08401105]
[1673692128784,0.23395332,20340.0,20336.0,0.08401105]
[1673692129028,0.11923686,20339.0,20336.0,0.08401105]
[1673692129241,0.11923686,20338.0,20336.0,0.08401105]
[1673692129573,0.61093186,20338.0,20336.0,0.08057905]
[1673692129828,0.491695,20338.0,20336.0,0.08057905]
[1673692130355,0.62392055,20340.0,20336.0,0.08057905]
[1673692130639,0.62392055,20340.0,20336.0,0.271305]
[1673692130858,0.62392055,20340.0,20336.0,0.08057905]
[1673692130859,0.56886872,20339.0,20336.0,0.08057905]
[1673692131106,1.05093624,20338.0,20336.0,0.08057905]
[1673692131348,0.1279946,20337.0,20336.0,0.08057905]
[1673692131600,0.8210526,20337.0,20336.0,0.08057905]
[1673692131840,0.693058,20337.0,20336.0,0.08057905]
[1673692132097,0.80973498,20337.0,20336.0,0.08057905]
[1673692132836,0.693058,20337.0,20336.0,0.08057905]
[1673692133084,1.14356162,20337.0,20336.0,0.08057905]
[1673692133585,0.79970251,20337.0,20336.0,0.08057905]
[1673692134834,0.81897963,20337.0,20336.0,0.08057905]
[1673692135076,0.91897963,20337.0,20336.0,0.08057905]
[1673692135332,0.693058,20337.0,20336.0,0.08057905]
[1673692135833,1.67684348,20337.0,20336.0,0.08057905]
[1673692136590,0.79084255,20337.0,20336.0,0.08057905]
[1673692138085,0.79084255,20337.0,20336.0,0.271305]
[1673692138086,0.201344,20337.0,20336.0,0.271305]
[1673692138347,0.22200936,20344.0,20336.0,0.89519805]
[1673692138348,0.59362611,20342.0,20336.0,0.89519805]
[1673692138593,0.59362611,20342.0,20337.0,0.19072595]
[1673692138850,0.10202911,20342.0,20338.0,0.19072595]
[1673692139106,0.10202911,20342.0,20339.0,0.19072595]
[1673692139347,0.491584,20343.0,20339.0,0.19072595]
[1673692139597,0.60404462,20342.0,20339.0,0.19072595]
[1673692139854,0.1,20340.0,20336.0,0.08057905]
[1673692140105,0.11923686,20339.0,20336.0,0.08057905]
[1673692140345,0.32058086,20338.0,20336.0,0.08057905]
[1673692140596,0.11923686,20338.0,20336.0,0.08057905]
[1673692140837,1.184772,20337.0,20336.0,0.08057905]
[1673692141591,0.201344,20337.0,20336.0,0.08057905]
[1673692141843,0.491687,20339.0,20336.0,0.08057905]
[1673692142087,0.94214762,20340.0,20336.0,0.08057905]
[1673692142088,0.61920067,20340.0,20336.0,0.271305]
[1673692142599,0.12755667,20340.0,20336.0,0.271305]
[1673692142843,0.49161,20342.0,20337.0,0.29072595]
[1673692143087,0.00575453,20344.0,20338.0,1.00529395]
[1673692143332,0.12072902,20344.0,20339.0,0.21089095]
[1673692143594,0.12072902,20344.0,20338.0,0.491687]
[1673692143595,0.00575453,20344.0,20340.0,0.19072595]
[1673692143836,0.00575453,20344.0,20341.0,0.19072595]
[1673692144092,0.13207278,20343.0,20341.0,0.19072595]
[1673692144337,1.18453,20342.0,20336.0,0.08057905]
[1673692144593,0.10880959,20338.0,20336.0,0.08057905]
[1673692144855,0.201344,20337.0,20336.0,0.08057905]
[1673692145112,0.71974606,20340.0,20336.0,0.08057905]
[1673692145113,0.26924244,20340.0,20336.0,0.08057905]
[1673692145362,0.26924244,20340.0,20337.0,0.322881]
[1673692145613,0.26924244,20340.0,20338.0,0.511876]
[1673692145860,0.26924244,20340.0,20339.0,0.61357295]
[1673692146111,0.26924244,20340.0,20339.0,0.422847]
[1673692146355,0.26924244,20340.0,20339.0,0.914513]
[1673692146865,0.26924244,20340.0,20339.0,1.89782159]
[1673692147364,0.26924244,20340.0,20339.0,3.89782159]
[1673692148357,0.26924244,20340.0,20339.0,3.79782159]
[1673692148611,0.51775524,20340.0,20339.0,2.0]
[1673692148881,0.89016038,20340.0,20336.0,0.08057905]
[1673692149145,0.11923686,20339.0,20336.0,0.08057905]
[1673692149398,0.61092686,20338.0,20336.0,0.08057905]
[1673692149664,0.201344,20337.0,20336.0,0.08057905]
[1673692149911,0.42058086,20337.0,20336.0,0.08057905]
[1673692150160,0.301344,20337.0,20336.0,0.08057905]
[1673692150668,1.05184762,20337.0,20336.0,0.08057905]
[1673692151172,1.05184762,20337.0,20336.0,0.08050277]
[1673692151421,0.75184762,20337.0,20336.0,0.08050277]
[1673692151676,0.201344,20337.0,20336.0,0.08050277]
[1673692152201,0.65184762,20337.0,20336.0,0.08050277]
[1673692152445,0.31291981,20337.0,20336.0,0.08050277]
[1673692152695,0.87345884,20337.0,20336.0,0.08050277]
[1673692152946,0.39847369,20337.0,20336.0,0.08050277]
[1673692153193,0.29847369,20337.0,20336.0,0.08050277]
[1673692153452,0.201344,20337.0,20336.0,0.08050277]
[1673692153697,1.67824671,20337.0,20336.0,0.08050277]
[1673692153960,1.82223235,20337.0,20336.0,0.08050277]
[1673692154210,0.79583326,20337.0,20336.0,0.08050277]
[1673692154465,0.95184762,20337.0,20336.0,0.08050277]
[1673692154713,0.201344,20337.0,20336.0,0.27122872]
[1673692154955,0.201344,20337.0,20336.0,0.08050277]
[1673692155205,0.983401,20338.0,20336.0,0.08050277]
[1673692155704,0.201344,20337.0,20336.0,0.08050277]
[1673692155945,0.983401,20338.0,20336.0,0.08050277]
[1673692156189,1.08403769,20338.0,20336.0,0.08050277]
[1673692156710,0.12334823,20337.0,20336.0,0.08050277]
[1673692156964,0.301344,20337.0,20336.0,0.08050277]
[1673692157209,0.793058,20337.0,20336.0,0.08050277]
[1673692157716,1.093058,20337.0,20336.0,0.08050277]
[1673692158454,1.84103094,20337.0,20336.0,0.08050277]
[1673692158701,0.793058,20337.0,20336.0,0.08050277]
[1673692159188,1.093058,20337.0,20336.0,0.08050277]
[1673692160200,0.81050094,20337.0,20336.0,0.08050277]
[1673692160435,0.694058,20337.0,20336.0,0.08050277]
[1673692161972,0.80881477,20337.0,20336.0,0.08050277]
[1673692162474,0.994058,20337.0,20336.0,0.08050277]
[1673692162712,0.08790954,20335.0,20333.0,0.01765062]
[1673692162962,2.35257901,20334.0,20333.0,0.01765062]
[1673692163216,2.85396274,20334.0,20333.0,0.01765062]
[1673692163462,2.59670802,20334.0,20333.0,0.01765062]
[1673692163722,2.85567467,20334.0,20333.0,0.01765062]
[1673692163969,2.468492,20334.0,20333.0,0.01765062]
[1673692164965,0.1,20333.0,20332.0,0.01097141]
[1673692165221,1.01104786,20333.0,20332.0,0.01097141]
[1673692165477,1.01104786,20333.0,20326.0,0.01770714]
[1673692165478,0.1,20332.0,20326.0,0.01770714]
[1673692165739,0.29047623,20330.0,20326.0,0.01770714]
[1673692165989,0.1438,20328.0,20326.0,0.01770714]
[1673692166239,0.70822397,20327.0,20326.0,0.01770714]
[1673692166488,2.48409197,20327.0,20326.0,0.01770714]
[1673692166743,2.36485511,20327.0,20326.0,0.01770714]
[1673692167265,2.36485511,20327.0,20322.0,0.01798953]
[1673692167266,3.32360816,20327.0,20322.0,0.01798953]
[1673692167523,0.1447,20323.0,20322.0,0.01798953]
[1673692167775,2.43349286,20323.0,20322.0,0.01798953]
[1673692168031,2.314256,20323.0,20322.0,0.01798953]
[1673692168272,2.614256,20323.0,20322.0,0.01798953]
[1673692169031,0.1,20322.0,20310.0,1.0]
[1673692169275,0.984328,20319.0,20311.0,0.19072595]
[1673692169523,0.984328,20319.0,20312.0,0.1]
[1673692169524,0.50828451,20318.0,20312.0,0.1]
[1673692169791,0.11923686,20317.0,20312.0,0.1]
[1673692170058,0.11923686,20316.0,20312.0,0.1]
[1673692170310,0.88093419,20318.0,20312.0,0.1]
[1673692170311,0.11923686,20315.0,20313.0,0.322881]
[1673692170556,0.492203,20317.0,20310.0,1.0]
[1673692170557,0.49223,20316.0,20311.0,0.1]
[1673692170801,0.11923686,20315.0,20311.0,0.1]
[1673692171045,0.11923686,20315.0,20310.0,1.0]
[1673692171297,0.11923686,20314.0,20310.0,1.0]
[1673692171546,0.61153686,20313.0,20310.0,1.0]
[1673692172828,0.4923,20313.0,20310.0,1.0]
[1673692173308,0.11923686,20312.0,20310.0,1.0]
[1673692173550,0.4923,20313.0,20310.0,1.0]
[1673692173551,0.201344,20311.0,20310.0,1.0]
[1673692173802,0.11998174,20312.0,20310.0,1.0]
[1673692174043,0.492344,20311.0,20310.0,1.0]
[1673692174289,0.693688,20311.0,20310.0,1.0]
[1673692175527,0.693688,20311.0,20304.0,0.01701565]
[1673692175528,1.29012655,20311.0,20304.0,0.01701565]
[1673692175778,0.1438,20309.0,20304.0,0.01701565]
[1673692176026,2.29727424,20308.0,20304.0,0.01701565]
[1673692176263,0.11923686,20307.0,20304.0,0.01701565]
[1673692176541,1.778739,20306.0,20304.0,0.01701565]
[1673692176778,1.69663186,20306.0,20304.0,0.01701565]
[1673692177034,0.201344,20305.0,20304.0,0.01701565]
[1673692177532,0.201404,20305.0,20304.0,0.01701565]
[1673692177780,0.201404,20305.0,20304.0,0.06912565]
[1673692178264,6e-05,20305.0,20304.0,0.2598516]
[1673692178517,0.1438,20314.0,20305.0,0.1]
[1673692178518,0.62213542,20313.0,20305.0,0.1]
[1673692178760,0.493305,20313.0,20306.0,0.21156595]
[1673692178997,0.61254186,20313.0,20307.0,0.51354795]
[1673692179242,0.001,20313.0,20308.0,0.19072595]
[1673692179533,0.001,20313.0,20309.0,0.19072595]
[1673692179785,0.001,20313.0,20310.0,0.51360695]
[1673692180022,0.001,20313.0,20311.0,0.020721]
[1673692180263,0.001,20313.0,20309.0,0.492385]
[1673692180535,0.001,20313.0,20310.0,0.422881]
[1673692180794,0.001,20313.0,20311.0,0.21144695]
[1673692181046,0.11986829,20319.0,20312.0,0.90004969]
[1673692181301,0.11986829,20319.0,20313.0,0.21144295]
[1673692181302,0.492153,20319.0,20313.0,0.21144295]
[1673692181559,0.13156006,20318.0,20314.0,0.19072595]
[1673692182825,0.11692806,20319.0,20315.0,0.322881]
[1673692183069,0.11692806,20319.0,20312.0,0.1]
[1673692183070,0.10145768,20318.0,20312.0,0.1]
[1673692183322,0.11923686,20317.0,20312.0,0.29072595]
[1673692183585,0.11923686,20316.0,20313.0,0.322881]
[1673692183841,0.11923686,20318.0,20314.0,0.0629481]
[1673692184086,0.1153881,20322.0,20316.0,0.98444]
[1673692184336,0.11131892,20321.0,20317.0,0.120652]
[1673692184586,0.5900013,20324.0,20318.0,0.51351995]
[1673692184835,0.12800849,20323.0,20319.0,0.19072595]
[1673692185088,0.09896466,20322.0,20320.0,0.19072595]
[1673692185347,0.09896466,20322.0,20318.0,0.1]
[1673692185600,0.492042,20324.0,20318.0,0.29072595]
[1673692185853,0.492042,20324.0,20319.0,0.19072595]
[1673692185854,0.13058191,20324.0,20319.0,0.19072595]
[1673692186100,1.02878929,20326.0,20320.0,0.29072595]
[1673692186101,0.49740294,20326.0,20320.0,0.29072595]
[1673692186371,0.00541594,20326.0,20321.0,0.19072595]
[1673692186624,0.00541594,20326.0,20320.0,0.1]
[1673692186625,0.00541594,20326.0,20322.0,0.19072595]
[1673692186864,0.00541594,20326.0,20323.0,0.19072595]
[1673692187610,0.00541594,20326.0,20319.0,0.592145]
[1673692187611,0.201344,20325.0,20317.0,0.492188]
[1673692187862,0.61126886,20324.0,20317.0,0.492188]
[1673692188107,0.1451,20321.0,20311.0,0.492321]
[1673692188359,0.77411996,20320.0,20312.0,0.1]
[1673692188628,1.129148,20318.0,20311.0,0.9301]
[1673692188873,0.77411996,20317.0,20311.0,0.9301]
[1673692189116,1.55725996,20316.0,20311.0,0.9301]
[1673692189377,0.11923686,20315.0,20311.0,0.9301]
[1673692189623,0.11923686,20314.0,20309.0,0.1]
[1673692189875,0.11923686,20313.0,20309.0,0.1]
[1673692190142,0.11923686,20312.0,20309.0,0.1]
[1673692190393,0.11923686,20312.0,20310.0,0.322881]
[1673692190633,0.984546,20314.0,20311.0,0.020723]
[1673692190875,0.492297,20313.0,20308.0,0.1]
[1673692191123,0.11923686,20312.0,20308.0,0.1]
[1673692191618,0.21524654,20312.0,20309.0,0.322881]
[1673692191865,0.9458361,20313.0,20310.0,0.020741]
[1673692191866,0.61377271,20313.0,20310.0,0.020741]
[1673692192105,0.61377271,20313.0,20311.0,0.322848]
[1673692192355,0.61377271,20313.0,20307.0,0.9459]
[1673692192356,0.12943377,20311.0,20307.0,0.9459]
[1673692192601,0.12943377,20311.0,20304.0,0.01701565]
[1673692192602,0.81295186,20310.0,20304.0,0.01701565]
[1673692192845,0.57277596,20309.0,20304.0,0.01701565]
[1673692193093,0.11923686,20308.0,20304.0,0.01701565]
[1673692193341,0.11923686,20307.0,20304.0,0.43989665]
[1673692193589,0.11923686,20307.0,20305.0,0.020838]
[1673692193852,0.4535391,20312.0,20308.0,0.06880119]
[1673692194096,0.59311618,20314.0,20309.0,0.21155695]
[1673692194343,0.59311618,20314.0,20308.0,0.06880119]